[Event "SixDays Budapest IM-B June 2024"]
[Site "Budapest"]
[Date "2024.06.05"]
[Round "4.4"]
[White "Krizsany, Laszlo"]
[Black "Varga, Csaba Zoltan"]
[Result "1-0"]
[ECO "B07"]
[WhiteElo "2330"]
[BlackElo "2157"]
[Annotator "RC"]
[PlyCount "131"]
[EventDate "2024.06.01"]
[EventType "tourn"]
[EventCountry "HUN"]
[SourceTitle "playchess.com"]
[Source "ChessBase"]
[SourceQuality "1"]
[TimeControl "5400+30"]

1. d4 {[%emt 0:00:04]} d6 {[%emt 0:05:37]} 2. e4 {[%emt 0:00:14]} Nf6 {[%emt 0:00:04]} 3. Nc3 {[%emt 0:00:41]} e5 {[%emt 0:00:05]} 4. dxe5 {[%emt 0:00:24]} dxe5 {[%emt 0:00:05]} 5. Qxd8+ {[%emt 0:00:06]} Kxd8 {[%emt 0:00:03]} 6. Bc4 {[%emt 0:00:13]} Ke8 {[%emt 0:00:04]} 7. Nf3 {[%emt 0:02:12]} Bd6 {[%emt 0:00:40]} 8. Bg5 {[%emt 0:04:50]} Nbd7 {[%emt 0:00:10]} 9. O-O-O {[%emt 0:05:03]} a6 {[%emt 0:00:11]} 10. a4 {[%emt 0:06:31]} Nb6 {[%emt 0:09:52]} 11. Bb3 {[%emt 0:02:48]} Be6 {[%emt 0:00:18]} 12. Bxf6 {[%emt 0:04:59]} gxf6 {[%emt 0:00:06]} 13. Nh4 {[%emt 0:07:25]} Rg8 {[%emt 0:00:40]} 14. g3 {[%emt 0:01:49]} Rd8 {[%emt 0:05:28]} 15. a5 {[%emt 0:14:03]} Nd7 {[%emt 0:03:12]} 16. Nd5 {[%emt 0:06:30]} c6 {[%emt 0:01:03]} 17. Ne3 {[%emt 0:00:56]} Nc5 {[%emt 0:01:07]} 18. Bxe6 {[%emt 0:04:01]} fxe6 {[%emt 0:03:15]} 19. Nc4 {[%emt 0:02:28]} Bc7 {[%emt 0:01:28]} 20. f3 {[%emt 0:01:16]} Ke7 {[%emt 0:01:05]} 21. Ng2 {[%emt 0:02:09]} Rd4 {[%emt 0:00:10]} 22. Nge3 {[%emt 0:02:23]} h5 {[%emt 0:02:19]} 23. b3 {[%emt 0:01:17]} Rgd8 {[%emt 0:01:52]} 24. Kb2 {[%emt 0:01:46]} f5 {[%emt 0:05:32]} 25. exf5 {[%emt 0:01:46]} Rxd1 {[%emt 0:00:05]} 26. f6+ {[%emt 0:01:39]} Kxf6 {[%emt 0:00:03]} 27. Nxd1 {[%emt 0:00:44]} e4 {[%emt 0:01:16]} 28. b4 {[%emt 0:03:42]} b5 {[%emt 0:01:21]} 29. axb6 {[%emt 0:01:17]} Na4+ {[%emt 0:00:07]} 30. Kb3 {[%emt 0:02:15]} Nxb6 {[%emt 0:00:05]} 31. fxe4 {[%emt 0:05:06]} Nxc4 {[%emt 0:00:13]} 32. Kxc4 {[%emt 0:00:08]} Ke5 {[%emt 0:00:23]} 33. Nf2 {[%emt 0:05:52]} Rd4+ {[%emt 0:02:28]} 34. Kc3 {[%emt 0:00:41]} a5 {[%emt 0:00:45]} 35. Nd3+ {[%emt 0:03:41]} Kxe4 {[%emt 0:00:17]} 36. Re1+ {[%emt 0:00:48]} Kd5 {[%emt 0:01:20]} 37. Ra1 {[%emt 0:01:10]} Bd8 {[%emt 0:03:08]} 38. bxa5 {[%emt 0:03:47]} Bf6 {[%emt 0:00:16]} 39. Ra2 {[%emt 0:00:18]} Kd6 {[%emt 0:10:32]} 40. a6 {[%emt 0:00:58]} Kc7 {[%emt 0:00:47]} 41. Kb3 {[%emt 0:00:47]} Kb8 {[%emt 0:00:14]} 42. Ra4 {[%emt 0:00:58]} Ka7 {[%emt 0:02:36]} 43. Rxd4 {[%emt 0:00:06]} Bxd4 {[%emt 0:00:04]} 44. Nf4 {[%emt 0:00:54]} Kxa6 {[%emt 0:00:18]} 45. Kc4 {[%emt 0:00:20]} Bg1 {[%emt 0:00:46]} 46. h4 {[%emt 0:00:33]} Kb6 {[%emt 0:01:02]} 47. Nxh5 {[%emt 0:00:09]} Bf2 {[%emt 0:00:26]} 48. Kd3 {[%emt 0:00:47]} Kc5 {[%emt 0:00:14]} 49. Ke2 {[%emt 0:00:09]} Bd4 {[%emt 0:00:09]} 50. Nf4 {[%emt 0:00:31]} Kd6 {[%emt 0:00:04]} 51. Kf3 {[%emt 0:00:43]} Ke5 {[%emt 0:01:01]} 52. g4 {[%emt 0:00:10]} Kf6 {[%emt 0:00:44]} 53. Ng2 {[%emt 0:00:27]} Bc3 {[%emt 0:01:09]} 54. Ke4 {[%emt 0:00:16]} e5 {[%emt 0:01:09]} 55. Ne3 {[%emt 0:00:11]} Be1 {[%emt 0:00:32]} 56. Nf5 {[%emt 0:00:14]} Bc3 {[%emt 0:00:46]} 57. g5+ {[%emt 0:00:52]} Kg6 {[%emt 0:00:07]} 58. Ne7+ {[%emt 0:00:20]} Kh5 {[%emt 0:00:08]} 59. g6 {[%emt 0:00:45]} Kh6 {[%emt 0:00:04]} 60. h5 {[%emt 0:00:56]} Kg7 {[%emt 0:00:03]} 61. Nxc6 {[%emt 0:00:15]} Kf6 {[%emt 0:00:04]} 62. Nxe5 {[%emt 0:01:01]} Bd2 {[%emt 0:00:32]} 63. c4 {[%emt 0:00:29]} Bb4 {[%emt 0:00:04]} 64. Ng4+ {[%emt 0:00:18]} Kg7 {[%emt 0:00:04]} 65. Kf5 {[%emt 0:00:04]} Bf8 {[%emt 0:00:17]} 66. h6+ {[%emt 0:00:13]} 1-0

[Event "SixDays Budapest IM-B June 2024"]
[Site "Budapest"]
[Date "2024.06.05"]
[Round "4.5"]
[White "Danilenko, Dmitriy"]
[Black "Izsak, Gyula"]
[Result "1-0"]
[ECO "B42"]
[WhiteElo "2403"]
[BlackElo "2386"]
[Annotator "RC"]
[PlyCount "51"]
[EventDate "2024.06.01"]
[EventType "tourn"]
[EventCountry "HUN"]
[SourceTitle "playchess.com"]
[Source "ChessBase"]
[SourceQuality "1"]
[TimeControl "5400+30"]

1. e4 {[%emt 0:00:25]} c5 {[%emt 0:00:10]} 2. Nf3 {[%emt 0:00:22]} e6 {[%emt 0:00:15]} 3. d4 {[%emt 0:00:12]} cxd4 {[%emt 0:00:10]} 4. Nxd4 {[%emt 0:00:06]} a6 {[%emt 0:00:04]} 5. Bd3 {[%emt 0:00:23]} Nf6 {[%emt 0:00:29]} 6. O-O {[%emt 0:00:30]} Qc7 {[%emt 0:00:18]} 7. Qe2 {[%emt 0:01:01]} d6 {[%emt 0:00:22]} 8. c4 {[%emt 0:00:09]} Nbd7 {[%emt 0:03:32]} 9. f4 {[%emt 0:05:13]} e5 {[%emt 0:17:11]} 10. Nf3 {[%emt 0:06:29]} exf4 {[%emt 0:08:34]} 11. Bxf4 {[%emt 0:00:15]} Ne5 {[%emt 0:00:27]} 12. Nc3 {[%emt 0:04:12]} Bg4 {[%emt 0:02:02]} 13. Rac1 {[%emt 0:01:59]} Bxf3 {[%emt 0:20:58]} 14. gxf3 {[%emt 0:00:31]} Nxd3 {[%emt 0:08:20]} 15. Qxd3 {[%emt 0:00:13]} Be7 {[%emt 0:00:13]} 16. Kh1 {[%emt 0:04:56]} Qd7 {[%emt 0:09:29]} 17. Rg1 {[%emt 0:03:02]} Nh5 {[%emt 0:05:45]} 18. Bd2 {[%emt 0:04:49]} O-O {[%emt 0:01:48]} 19. Nd5 {[%emt 0:00:31]} Bd8 {[%emt 0:00:34]} 20. Bc3 {[%emt 0:30:09]} f5 {[%emt 0:03:36]} 21. Ne3 {[%emt 0:01:12]} fxe4 {[%emt 0:01:47]} 22. Qd5+ {[%emt 0:00:20]} Rf7 {[%emt 0:02:58]} 23. Qxh5 {[%emt 0:00:23]} Bb6 {[%emt 0:00:44]} 24. Qh6 {[%emt 0:16:08]} Bxe3 {[%emt 0:07:52]} 25. Qxe3 {[%emt 0:00:07]} exf3 {[%emt 0:00:04]} 26. Bxg7 {[%emt 0:01:19]} 1-0

[Event "SixDays Budapest IM-B June 2024"]
[Site "Budapest"]
[Date "2024.06.05"]
[Round "5.1"]
[White "Izsak, Gyula"]
[Black "Horvath, David"]
[Result "1/2-1/2"]
[ECO "D10"]
[WhiteElo "2386"]
[BlackElo "2313"]
[Annotator "RC"]
[PlyCount "22"]
[EventDate "2024.06.01"]
[EventType "tourn"]
[EventCountry "HUN"]
[SourceTitle "playchess.com"]
[Source "ChessBase"]
[SourceQuality "1"]
[TimeControl "5400+30"]

1. d4 d5 2. c4 c6 3. cxd5 cxd5 4. Nc3 Nf6 5. Bf4 Nc6 6. e3 Bf5 7. Bd3 Bxd3 8. Qxd3 e6 9. Nf3 Bd6 10. Bxd6 Qxd6 11. O-O O-O 1/2-1/2

[Event "SixDays Budapest IM-B June 2024"]
[Site "Budapest"]
[Date "2024.06.05"]
[Round "5.2"]
[White "Varga, Csaba Zoltan"]
[Black "Danilenko, Dmitriy"]
[Result "0-1"]
[ECO "B89"]
[WhiteElo "2157"]
[BlackElo "2403"]
[Annotator "RC"]
[PlyCount "131"]
[EventDate "2024.06.01"]
[EventType "tourn"]
[EventCountry "HUN"]
[SourceTitle "playchess.com"]
[Source "ChessBase"]
[SourceQuality "1"]
[TimeControl "5400+30"]

1. e4 {[%emt 0:02:29]} c5 {[%emt 0:00:16]} 2. Nf3 {[%emt 0:00:03]} d6 {[%emt 0:00:14]} 3. d4 {[%emt 0:00:05]} cxd4 {[%emt 0:00:05]} 4. Nxd4 {[%emt 0:00:04]} Nf6 {[%emt 0:00:06]} 5. Nc3 {[%emt 0:00:04]} Nc6 {[%emt 0:00:05]} 6. Bc4 {[%emt 0:00:03]} e6 {[%emt 0:00:39]} 7. Be3 {[%emt 0:00:08]} Bd7 {[%emt 0:00:07]} 8. Bb3 {[%emt 0:00:04]} a6 {[%emt 0:01:06]} 9. Qe2 {[%emt 0:00:17]} b5 {[%emt 0:00:41]} 10. O-O-O {[%emt 0:00:06]} Na5 {[%emt 0:00:39]} 11. Kb1 {[%emt 0:00:12]} Nxb3 {[%emt 0:11:51]} 12. Nxb3 {[%emt 0:00:39]} b4 {[%emt 0:03:16]} 13. e5 {[%emt 0:00:03]} dxe5 {[%emt 0:21:03]} 14. Na4 {[%emt 0:00:13]} Nd5 {[%emt 0:02:50]} 15. Nac5 {[%emt 0:00:05]} Be7 {[%emt 0:11:54]} 16. Qg4 {[%emt 0:00:28]} g6 {[%emt 0:02:13]} 17. Rhe1 {[%emt 0:01:28]} Qc7 {[%emt 0:03:40]} 18. Nxd7 {[%emt 0:00:21]} Qxd7 {[%emt 0:00:10]} 19. Bh6 {[%emt 0:00:12]} f5 {[%emt 0:08:39]} 20. Qe2 {[%emt 0:00:03]} Bd6 {[%emt 0:00:38]} 21. g4 {[%emt 0:00:11]} Rg8 {[%emt 0:05:28]} 22. gxf5 {[%emt 0:00:05]} gxf5 {[%emt 0:00:03]} 23. Rg1 {[%emt 0:02:40]} Rg6 {[%emt 0:00:57]} 24. Qh5 {[%emt 0:00:05]} Qf7 {[%emt 0:01:17]} 25. Bg5 {[%emt 0:01:32]} h6 {[%emt 0:01:02]} 26. Bxh6 {[%emt 0:00:28]} Rxg1 {[%emt 0:00:06]} 27. Qxf7+ {[%emt 0:00:04]} Kxf7 {[%emt 0:00:05]} 28. Rxg1 {[%emt 0:00:05]} Rh8 {[%emt 0:00:52]} 29. Rg7+ {[%emt 0:00:11]} Kf6 {[%emt 0:04:19]} 30. Rd7 {[%emt 0:00:05]} Be7 {[%emt 0:00:35]} 31. Be3 {[%emt 0:00:05]} Rxh2 {[%emt 0:00:14]} 32. Kc1 {[%emt 0:00:38]} Nxe3 {[%emt 0:06:03]} 33. fxe3 {[%emt 0:00:04]} Re2 {[%emt 0:00:12]} 34. c4 {[%emt 0:01:32]} bxc3 {[%emt 0:00:34]} 35. bxc3 {[%emt 0:00:05]} Rxa2 {[%emt 0:01:46]} 36. c4 {[%emt 0:00:27]} Ba3+ {[%emt 0:01:21]} 37. Kd1 {[%emt 0:00:06]} Rb2 {[%emt 0:04:48]} 38. Rb7 {[%emt 0:00:05]} f4 {[%emt 0:01:06]} 39. Nc5 {[%emt 0:00:07]} Ra2 {[%emt 0:03:18]} 40. Ne4+ {[%emt 0:00:41]} Kf5 {[%emt 0:00:43]} 41. Nc3 {[%emt 0:01:17]} Rh2 {[%emt 0:00:14]} 42. e4+ {[%emt 0:00:34]} Kg4 {[%emt 0:00:42]} 43. Na4 {[%emt 0:00:27]} f3 {[%emt 0:01:33]} 44. Ke1 {[%emt 0:00:05]} Bc1 {[%emt 0:00:54]} 45. Rg7+ {[%emt 0:00:44]} Kf4 {[%emt 0:00:29]} 46. Rf7+ {[%emt 0:00:05]} Ke3 {[%emt 0:00:10]} 47. Kd1 {[%emt 0:00:05]} Ba3 {[%emt 0:00:43]} 48. c5 {[%emt 0:00:22]} Rd2+ {[%emt 0:00:10]} 49. Ke1 {[%emt 0:00:06]} f2+ {[%emt 0:00:06]} 50. Kf1 {[%emt 0:00:06]} Rd1+ {[%emt 0:00:04]} 51. Kg2 {[%emt 0:00:03]} Rg1+ {[%emt 0:00:03]} 52. Kh3 {[%emt 0:00:10]} f1=Q+ {[%emt 0:00:08]} 53. Rxf1 {[%emt 0:00:03]} Rxf1 {[%emt 0:00:06]} 54. Kg4 {[%emt 0:00:03]} Rg1+ {[%emt 0:00:19]} 55. Kh5 {[%emt 0:00:06]} Kxe4 {[%emt 0:00:12]} 56. c6 {[%emt 0:00:04]} Rc1 {[%emt 0:00:10]} 57. Kg6 {[%emt 0:00:11]} Rxc6 {[%emt 0:00:05]} 58. Kf6 {[%emt 0:00:05]} Kf4 {[%emt 0:00:17]} 59. Kg6 {[%emt 0:00:05]} e4 {[%emt 0:00:03]} 60. Kf6 {[%emt 0:00:05]} e3 {[%emt 0:00:01]} 61. Nc3 {[%emt 0:00:07]} Rxc3 {[%emt 0:00:07]} 62. Kg6 {[%emt 0:00:08]} e2 {[%emt 0:00:03]} 63. Kf6 {[%emt 0:00:04]} e1=Q {[%emt 0:00:06]} 64. Kf7 {[%emt 0:00:03]} Qe5 {[%emt 0:00:10]} 65. Kg8 {[%emt 0:00:06]} Rc8+ {[%emt 0:00:29]} 66. Kh7 {[%emt 0:00:14]} 0-1

[Event "SixDays Budapest IM-B June 2024"]
[Site "Budapest"]
[Date "2024.06.05"]
[Round "5.3"]
[White "Advaitt Srikant Koduri"]
[Black "Krizsany, Laszlo"]
[Result "1/2-1/2"]
[ECO "A40"]
[WhiteElo "2066"]
[BlackElo "2330"]
[Annotator "RC"]
[PlyCount "22"]
[EventDate "2024.06.01"]
[EventType "tourn"]
[EventCountry "HUN"]
[SourceTitle "playchess.com"]
[Source "ChessBase"]
[SourceQuality "1"]
[TimeControl "5400+30"]

1. d4 {[%emt 0:01:16]} e6 {[%emt 0:00:40]} 2. Nf3 {[%emt 0:00:20]} b6 {[%emt 0:00:25]} 3. Bf4 {[%emt 0:00:09]} Bb7 {[%emt 0:00:13]} 4. e3 {[%emt 0:00:06]} Nf6 {[%emt 0:01:41]} 5. Nbd2 {[%emt 0:01:42]} d6 {[%emt 0:01:13]} 6. h3 {[%emt 0:00:12]} Nbd7 {[%emt 0:00:36]} 7. Be2 {[%emt 0:00:24]} g6 {[%emt 0:04:15]} 8. O-O {[%emt 0:00:11]} Bg7 {[%emt 0:00:09]} 9. a4 {[%emt 0:01:06]} a5 {[%emt 0:01:17]} 10. c3 {[%emt 0:00:27]} O-O {[%emt 0:00:30]} 11. Bh2 {[%emt 0:00:33]} Re8 {[%emt 0:03:13]} 1/2-1/2

[Event "SixDays Budapest IM-B June 2024"]
[Site "Budapest"]
[Date "2024.06.05"]
[Round "5.4"]
[White "Nagarkatte Vedant"]
[Black "Van Zyl-Rudd, Jack"]
[Result "1/2-1/2"]
[ECO "A45"]
[WhiteElo "2272"]
[BlackElo "2292"]
[Annotator "RC"]
[PlyCount "25"]
[EventDate "2024.06.01"]
[EventType "tourn"]
[EventCountry "HUN"]
[SourceTitle "playchess.com"]
[Source "ChessBase"]
[SourceQuality "1"]
[TimeControl "5400+30"]

1. d4 {[%emt 0:04:17]} Nf6 {[%emt 0:07:30]} 2. Nc3 {[%emt 0:00:04]} d5 {[%emt 0:00:16]} 3. Bf4 {[%emt 0:00:05]} e6 {[%emt 0:00:05]} 4. Nb5 {[%emt 0:00:09]} Bb4+ {[%emt 0:00:28]} 5. c3 {[%emt 0:00:06]} Ba5 {[%emt 0:00:02]} 6. e3 {[%emt 0:01:01]} O-O {[%emt 0:00:24]} 7. Bd3 {[%emt 0:00:42]} a6 {[%emt 0:07:29]} 8. Na3 {[%emt 0:00:06]} Nbd7 {[%emt 0:00:03]} 9. Nb1 {[%emt 0:04:42]} Qe7 {[%emt 0:34:24]} 10. Nf3 {[%emt 0:07:14]} Ne4 {[%emt 0:00:05]} 11. h4 {[%emt 0:13:48]} f5 {[%emt 0:04:16]} 12. Nbd2 {[%emt 0:14:27]} c5 {[%emt 0:01:38]} 13. Ne5 {[%emt 0:03:09]} 1/2-1/2

[Event "SixDays Budapest IM-B June 2024"]
[Site "Budapest"]
[Date "2024.06.05"]
[Round "5.5"]
[White "Nanditha V"]
[Black "Bashylina, Luisa"]
[Result "0-1"]
[ECO "B96"]
[WhiteElo "1852"]
[BlackElo "2250"]
[Annotator "RC"]
[PlyCount "128"]
[EventDate "2024.06.01"]
[EventType "tourn"]
[EventCountry "HUN"]
[SourceTitle "playchess.com"]
[Source "ChessBase"]
[SourceQuality "1"]
[TimeControl "5400+30"]

1. e4 {[%emt 0:00:15]} c5 {[%emt 0:00:03]} 2. Nf3 {[%emt 0:02:03]} d6 {[%emt 0:00:04]} 3. d4 {[%emt 0:01:09]} cxd4 {[%emt 0:00:07]} 4. Nxd4 {[%emt 0:00:58]} Nf6 {[%emt 0:00:06]} 5. Nc3 {[%emt 0:03:08]} a6 {[%emt 0:00:04]} 6. Bg5 {[%emt 0:00:29]} e6 {[%emt 0:00:41]} 7. f4 {[%emt 0:04:23]} h6 {[%emt 0:00:13]} 8. Bh4 {[%emt 0:02:58]} Nbd7 {[%emt 0:00:06]} 9. Qf3 {[%emt 0:02:24]} e5 {[%emt 0:00:59]} 10. Bxf6 {[%emt 0:02:07]} Nxf6 {[%emt 0:01:05]} 11. Nb3 {[%emt 0:06:23]} Be7 {[%emt 0:07:01]} 12. f5 {[%emt 0:02:09]} b5 {[%emt 0:02:35]} 13. a3 {[%emt 0:03:45]} Bb7 {[%emt 0:01:10]} 14. Rd1 {[%emt 0:01:08]} Qb6 {[%emt 0:09:36]} 15. Nd5 {[%emt 0:09:22]} Bxd5 {[%emt 0:04:43]} 16. exd5 {[%emt 0:00:25]} O-O {[%emt 0:03:37]} 17. g4 {[%emt 0:04:58]} e4 {[%emt 0:03:41]} 18. Qe2 {[%emt 0:03:39]} Nd7 {[%emt 0:15:25]} 19. h4 {[%emt 0:03:30]} g5 {[%emt 0:06:15]} 20. fxg6 {[%emt 0:13:31]} fxg6 {[%emt 0:00:11]} 21. Nd4 {[%emt 0:02:14]} Bf6 {[%emt 0:05:23]} 22. c3 {[%emt 0:04:12]} Nc5 {[%emt 0:07:40]} 23. Qe3 {[%emt 0:04:55]} Be5 {[%emt 0:04:19]} 24. Ne6 {[%emt 0:02:21]} Rf3 {[%emt 0:01:17]} 25. Qg1 {[%emt 0:02:19]} Bg3+ {[%emt 0:10:22]} 26. Kd2 {[%emt 0:01:26]} Bf2 {[%emt 0:00:25]} 27. Qg2 {[%emt 0:02:41]} Be3+ {[%emt 0:01:02]} 28. Kc2 {[%emt 0:01:48]} Rf2+ {[%emt 0:00:11]} 29. Kb1 {[%emt 0:00:05]} Rxg2 {[%emt 0:00:17]} 30. Bxg2 {[%emt 0:00:02]} Nxe6 {[%emt 0:01:41]} 31. dxe6 {[%emt 0:00:07]} d5 {[%emt 0:00:22]} 32. Rxd5 {[%emt 0:01:02]} Qxe6 {[%emt 0:00:06]} 33. Rdd1 {[%emt 0:00:29]} Rf8 {[%emt 0:00:54]} 34. g5 {[%emt 0:01:17]} Rf2 {[%emt 0:01:32]} 35. Rd8+ {[%emt 0:04:11]} Rf8 {[%emt 0:01:43]} 36. Bh3 {[%emt 0:00:28]} Qb3 {[%emt 0:01:36]} 37. Rd6 {[%emt 0:00:30]} Kh8 {[%emt 0:03:42]} 38. Be6 {[%emt 0:00:50]} Qa4 {[%emt 0:00:15]} 39. Ka2 {[%emt 0:03:45]} Bc5 {[%emt 0:02:47]} 40. Rc6 {[%emt 0:01:57]} Bxa3 {[%emt 0:01:51]} 41. Bb3 {[%emt 0:00:07]} Qa5 {[%emt 0:00:04]} 42. Rxg6 {[%emt 0:00:58]} Bc5+ {[%emt 0:03:08]} 43. Kb1 {[%emt 0:00:14]} h5 {[%emt 0:00:39]} 44. Rd1 {[%emt 0:01:05]} Qc7 {[%emt 0:00:33]} 45. Be6 {[%emt 0:03:17]} Bd6 {[%emt 0:00:11]} 46. Rh6+ Kg7 {[%emt 0:00:12]} 47. Bb3 {[%emt 0:01:41]} Be5 {[%emt 0:02:07]} 48. Bc2 {[%emt 0:00:44]} Qc4 {[%emt 0:00:36]} 49. Rxa6 {[%emt 0:00:51]} Rf1 {[%emt 0:00:38]} 50. Ra7+ {[%emt 0:00:35]} Kg6 {[%emt 0:00:11]} 51. Ra6+ {[%emt 0:00:10]} Kf5 {[%emt 0:00:19]} 52. Rxf1+ {[%emt 0:00:32]} Qxf1+ {[%emt 0:00:01]} 53. Ka2 {[%emt 0:00:10]} Qe2 {[%emt 0:00:33]} 54. Kb1 {[%emt 0:00:42]} Qe1+ {[%emt 0:00:33]} 55. Ka2 {[%emt 0:00:08]} Qxh4 {[%emt 0:00:17]} 56. Ra5 {[%emt 0:00:41]} Qf2 {[%emt 0:00:35]} 57. Bb1 {[%emt 0:00:25]} b4 {[%emt 0:00:35]} 58. Kb3 {[%emt 0:00:57]} bxc3 {[%emt 0:00:13]} 59. Bxe4+ {[%emt 0:00:46]} Kxe4 {[%emt 0:00:18]} 60. bxc3 {[%emt 0:00:05]} Qb6+ {[%emt 0:00:29]} 61. Ka4 {[%emt 0:00:07]} Bxc3 {[%emt 0:00:18]} 62. Rb5 {[%emt 0:00:22]} Qa6+ {[%emt 0:00:05]} 63. Kb3 {[%emt 0:00:03]} Qxb5+ {[%emt 0:00:03]} 64. Kxc3 {[%emt 0:00:03]} Qxg5 {[%emt 0:00:05]} 0-1

[Event "SixDays Budapest IM-B June 2024"]
[Site "Budapest"]
[Date "2024.06.06"]
[Round "6.1"]
[White "Horvath, David"]
[Black "Bashylina, Luisa"]
[Result "1-0"]
[ECO "D70"]
[WhiteElo "2313"]
[BlackElo "2250"]
[Annotator "RC"]
[PlyCount "77"]
[EventDate "2024.06.01"]
[EventType "tourn"]
[EventCountry "HUN"]
[SourceTitle "playchess.com"]
[Source "ChessBase"]
[SourceQuality "1"]
[TimeControl "5400+30"]

1. d4 {[%emt 0:00:03]} Nf6 {[%emt 0:00:04]} 2. c4 {[%emt 0:00:06]} g6 {[%emt 0:00:03]} 3. f3 {[%emt 0:00:07]} d5 {[%emt 0:01:12]} 4. cxd5 {[%emt 0:00:06]} Nxd5 {[%emt 0:00:04]} 5. e4 {[%emt 0:00:06]} Nb6 {[%emt 0:00:02]} 6. Nc3 {[%emt 0:00:06]} Bg7 {[%emt 0:00:03]} 7. Be3 {[%emt 0:00:06]} O-O {[%emt 0:00:07]} 8. Qd2 {[%emt 0:00:04]} Nc6 {[%emt 0:00:03]} 9. O-O-O {[%emt 0:00:07]} Qd6 {[%emt 0:01:05]} 10. Nb5 {[%emt 0:00:07]} Qd7 {[%emt 0:00:15]} 11. Bh6 {[%emt 0:00:08]} Bxh6 {[%emt 0:18:29]} 12. Qxh6 {[%emt 0:00:16]} a6 {[%emt 0:00:15]} 13. Nc3 {[%emt 0:00:05]} Nxd4 {[%emt 0:00:17]} 14. f4 {[%emt 0:00:05]} f6 {[%emt 0:05:35]} 15. Nf3 {[%emt 0:00:05]} e5 {[%emt 0:05:01]} 16. fxe5 {[%emt 0:00:41]} fxe5 {[%emt 0:04:03]} 17. Nxe5 {[%emt 0:00:04]} Qe6 {[%emt 0:01:49]} 18. Nxg6 {[%emt 0:06:38]} Nb3+ {[%emt 0:04:25]} 19. axb3 {[%emt 0:04:44]} Qxg6 {[%emt 0:02:50]} 20. Bc4+ {[%emt 0:30:31]} Nxc4 {[%emt 0:00:14]} 21. Qxg6+ {[%emt 0:00:07]} hxg6 {[%emt 0:00:04]} 22. bxc4 {[%emt 0:00:07]} Be6 {[%emt 0:12:35]} 23. c5 {[%emt 0:13:20]} Rf2 {[%emt 0:08:08]} 24. Rd2 {[%emt 0:04:28]} Raf8 {[%emt 0:02:42]} 25. Nd1 {[%emt 0:01:36]} R2f4 {[%emt 0:05:13]} 26. Re1 {[%emt 0:03:50]} Rf1 {[%emt 0:08:40]} 27. Rxf1 {[%emt 0:07:50]} Rxf1 {[%emt 0:00:03]} 28. Kc2 {[%emt 0:00:14]} Re1 {[%emt 0:04:43]} 29. Kd3 {[%emt 0:04:05]} b6 {[%emt 0:02:44]} 30. cxb6 {[%emt 0:05:47]} cxb6 {[%emt 0:00:04]} 31. Kd4 {[%emt 0:00:59]} Kf7 {[%emt 0:03:38]} 32. Nc3 {[%emt 0:02:22]} Ke7 {[%emt 0:05:45]} 33. Ke5 {[%emt 0:06:34]} Bf5 {[%emt 0:03:48]} 34. Rd1 {[%emt 0:02:49]} Rxd1 {[%emt 0:00:38]} 35. Nxd1 {[%emt 0:00:02]} Be6 {[%emt 0:01:14]} 36. Nc3 {[%emt 0:00:09]} b5 {[%emt 0:01:15]} 37. Nd5+ {[%emt 0:01:09]} Kd7 {[%emt 0:00:16]} 38. Nc7 {[%emt 0:03:01]} Bc4 {[%emt 0:01:28]} 39. Nxa6 {[%emt 0:00:12]} 1-0

[Event "SixDays Budapest IM-B June 2024"]
[Site "Budapest"]
[Date "2024.06.06"]
[Round "6.2"]
[White "Van Zyl-Rudd, Jack"]
[Black "Nanditha V"]
[Result "1-0"]
[ECO "B12"]
[WhiteElo "2292"]
[BlackElo "1852"]
[Annotator "RC"]
[PlyCount "45"]
[EventDate "2024.06.01"]
[EventType "tourn"]
[EventCountry "HUN"]
[SourceTitle "playchess.com"]
[Source "ChessBase"]
[SourceQuality "1"]
[TimeControl "5400+30"]

1. e4 {[%emt 0:11:52]} c6 {[%emt 0:00:50]} 2. d4 {[%emt 0:00:14]} d5 {[%emt 0:00:04]} 3. f3 {[%emt 0:00:06]} dxe4 {[%emt 0:00:20]} 4. fxe4 {[%emt 0:00:07]} e5 {[%emt 0:00:03]} 5. Nf3 {[%emt 0:00:06]} Bg4 {[%emt 0:00:12]} 6. c3 {[%emt 0:00:09]} exd4 {[%emt 0:07:03]} 7. Bc4 {[%emt 0:02:08]} Bxf3 {[%emt 0:08:00]} 8. Qxf3 {[%emt 0:00:17]} Qh4+ {[%emt 0:06:46]} 9. g3 {[%emt 0:00:54]} Qf6 {[%emt 0:05:43]} 10. Qe2 {[%emt 0:11:21]} d3 {[%emt 0:03:15]} 11. Qxd3 {[%emt 0:15:13]} Nd7 {[%emt 0:01:53]} 12. Rf1 {[%emt 0:00:29]} Ne5 {[%emt 0:00:37]} 13. Qe2 {[%emt 0:00:02]} Qe7 {[%emt 0:01:44]} 14. Bf4 {[%emt 0:00:43]} Nf6 {[%emt 0:13:08]} 15. Bxe5 {[%emt 0:02:27]} Qxe5 {[%emt 0:02:38]} 16. Rf5 {[%emt 0:00:01]} Qc7 {[%emt 0:05:39]} 17. e5 {[%emt 0:03:27]} O-O-O {[%emt 0:16:14]} 18. exf6 {[%emt 0:01:22]} Ba3 {[%emt 0:03:13]} 19. Kf1 {[%emt 0:04:01]} Rhe8 {[%emt 0:03:29]} 20. Qg4 {[%emt 0:03:13]} g6 {[%emt 0:06:28]} 21. Rf2+ {[%emt 0:02:44]} Kb8 {[%emt 0:01:02]} 22. Nxa3 {[%emt 0:00:12]} b5 {[%emt 0:01:42]} 23. Bb3 {[%emt 0:00:43]} 1-0